[Event "Titled Tuesday Blitz June 15 2021"]
[White "Triapishko, Alexandr"]
[Black "Mirzoev, Azer"]
[WhiteFideId "14122286"]
[BlackFideId "13400304"]
[WhiteElo "2490"]
[BlackElo "2525"]
[Result "1-0"]
[Round "11"]
[TimeControl "180+1"]
[Date "2021.06.15"]
[WhiteClock "0:00:05"]
[BlackClock "0:00:01"]

1. Nf3 {[%clk 0:03:00]}  d5 {[%clk 0:02:59]} 2. g3 {[%clk 0:03:01]}  Nf6 {[%clk 0:02:59]} 3. Bg2 {[%clk 0:03:01]}  c6 {[%clk 0:02:59]} 4. c4 {[%clk 0:03:01]}  g6 {[%clk 0:02:52]} 5. b3 {[%clk 0:02:59]}  Bg7 {[%clk 0:02:52]} 6. Bb2 {[%clk 0:02:59]}  O-O {[%clk 0:02:53]} 7. O-O {[%clk 0:03:00]}  Na6 {[%clk 0:02:49]} 8. d3 {[%clk 0:02:57]}  b6 {[%clk 0:02:48]} 9. Nbd2 {[%clk 0:02:55]}  Bb7 {[%clk 0:02:38]} 10. Rc1 {[%clk 0:02:55]}  c5 {[%clk 0:02:36]} 11. cxd5 {[%clk 0:02:49]}  Qxd5 {[%clk 0:02:30]} 12. Nc4 {[%clk 0:02:48]}  Qd7 {[%clk 0:02:20]} 13. Nce5 {[%clk 0:02:37]}  Qd8 {[%clk 0:02:13]} 14. d4 {[%clk 0:02:37]}  Rc8 {[%clk 0:02:10]} 15. dxc5 {[%clk 0:02:31]}  Nxc5 {[%clk 0:02:06]} 16. Qxd8 {[%clk 0:02:28]}  Rfxd8 {[%clk 0:01:57]} 17. Ng5 {[%clk 0:02:27]}  Bxg2 {[%clk 0:01:56]} 18. Kxg2 {[%clk 0:02:28]}  Rd2 {[%clk 0:01:23]} 19. Nc4 {[%clk 0:02:26]}  Rd5 {[%clk 0:01:16]} 20. Nf3 {[%clk 0:02:23]}  Nfe4 {[%clk 0:00:48]} 21. Ne3 {[%clk 0:02:15]}  Rdd8 {[%clk 0:00:44]} 22. Bxg7 {[%clk 0:02:10]}  Kxg7 {[%clk 0:00:44]} 23. Rc2 {[%clk 0:02:05]}  Ne6 {[%clk 0:00:36]} 24. Rfc1 {[%clk 0:02:04]}  Rxc2 {[%clk 0:00:36]} 25. Rxc2 {[%clk 0:02:05]}  f6 {[%clk 0:00:36]} 26. Rc4 {[%clk 0:01:51]}  Nd6 {[%clk 0:00:35]} 27. Ra4 {[%clk 0:01:31]}  Rd7 {[%clk 0:00:35]} 28. b4 {[%clk 0:01:21]}  Kf7 {[%clk 0:00:34]} 29. Ra3 {[%clk 0:01:18]}  Nb5 {[%clk 0:00:34]} 30. Rb3 {[%clk 0:01:17]}  Rc7 {[%clk 0:00:33]} 31. Rb2 {[%clk 0:01:08]}  Nbd4 {[%clk 0:00:31]} 32. Ne1 {[%clk 0:00:55]}  Rc3 {[%clk 0:00:22]} 33. Nd5 {[%clk 0:00:50]}  Rc1 {[%clk 0:00:20]} 34. Nd3 {[%clk 0:00:48]}  Rc2 {[%clk 0:00:20]} 35. Rxc2 {[%clk 0:00:43]}  Nxc2 {[%clk 0:00:20]} 36. e3 {[%clk 0:00:44]}  Ke8 {[%clk 0:00:17]} 37. Kf1 {[%clk 0:00:41]}  Kd7 {[%clk 0:00:16]} 38. Ke2 {[%clk 0:00:39]}  Na3 {[%clk 0:00:16]} 39. Nb2 {[%clk 0:00:32]}  Nb5 {[%clk 0:00:15]} 40. Kd3 {[%clk 0:00:32]}  Nec7 {[%clk 0:00:14]} 41. Nxc7 {[%clk 0:00:28]}  Nxc7 {[%clk 0:00:14]} 42. e4 {[%clk 0:00:28]}  Kc6 {[%clk 0:00:14]} 43. a4 {[%clk 0:00:23]}  Ne8 {[%clk 0:00:13]} 44. Nd1 {[%clk 0:00:22]}  Nd6 {[%clk 0:00:11]} 45. Ne3 {[%clk 0:00:22]}  a5 {[%clk 0:00:10]} 46. Nd5 {[%clk 0:00:18]}  axb4 {[%clk 0:00:09]} 47. Nxb4+ {[%clk 0:00:18]}  Kc5 {[%clk 0:00:09]} 48. Na6+ {[%clk 0:00:16]}  Kc6 {[%clk 0:00:08]} 49. f4 {[%clk 0:00:15]}  f5 {[%clk 0:00:08]} 50. Nb4+ {[%clk 0:00:09]}  Kc5 {[%clk 0:00:08]} 51. Na6+ {[%clk 0:00:10]}  Kc6 {[%clk 0:00:08]} 52. e5 {[%clk 0:00:10]}  Ne4 {[%clk 0:00:08]} 53. Kd4 {[%clk 0:00:11]}  Nd2 {[%clk 0:00:08]} 54. Nb4+ {[%clk 0:00:10]}  Kb7 {[%clk 0:00:07]} 55. Nd5 {[%clk 0:00:09]}  Nf3+ {[%clk 0:00:06]} 56. Ke3 {[%clk 0:00:06]}  Nxh2 {[%clk 0:00:06]} 57. Nxe7 {[%clk 0:00:06]}  Kc7 {[%clk 0:00:06]} 58. Nd5+ {[%clk 0:00:05]}  Kc6 {[%clk 0:00:06]} 59. Nf6 {[%clk 0:00:05]}  Ng4+ {[%clk 0:00:01]} 60. Nxg4 {[%clk 0:00:05]} 1-0


[Site "https://www.chess.com"]

[Event "Titled Tuesday Blitz June 15 2021"]
[White "Tsaruk, Maksim"]
[Black "Dobrov, Vladimir"]
[WhiteFideId "13511173"]
[BlackFideId "4136594"]
[WhiteElo "2197"]
[BlackElo "2614"]
[Result "0-1"]
[Round "11"]
[TimeControl "180+1"]
[Date "2021.06.15"]
[WhiteClock "0:00:35"]
[BlackClock "0:00:35"]

1. e4 {[%clk 0:02:57]}  c5 {[%clk 0:02:57]} 2. Nf3 {[%clk 0:02:57]}  d6 {[%clk 0:02:57]} 3. d4 {[%clk 0:02:58]}  cxd4 {[%clk 0:02:58]} 4. Nxd4 {[%clk 0:02:58]}  Nf6 {[%clk 0:02:58]} 5. Nc3 {[%clk 0:02:59]}  a6 {[%clk 0:02:58]} 6. g3 {[%clk 0:03:00]}  e5 {[%clk 0:02:53]} 7. Nb3 {[%clk 0:03:00]}  Be6 {[%clk 0:02:52]} 8. Bg2 {[%clk 0:03:00]}  h5 {[%clk 0:02:50]} 9. Bg5 {[%clk 0:02:59]}  Nbd7 {[%clk 0:02:48]} 10. Qd2 {[%clk 0:02:54]}  Be7 {[%clk 0:02:48]} 11. O-O-O {[%clk 0:02:54]}  b5 {[%clk 0:02:46]} 12. f4 {[%clk 0:02:51]}  Qc7 {[%clk 0:02:41]} 13. Nd5 {[%clk 0:02:42]}  Bxd5 {[%clk 0:02:40]} 14. exd5 {[%clk 0:02:43]}  O-O {[%clk 0:02:02]} 15. Na5 {[%clk 0:02:42]}  Rfe8 {[%clk 0:01:10]} 16. Nc6 {[%clk 0:02:36]}  exf4 {[%clk 0:01:05]} 17. gxf4 {[%clk 0:02:31]}  Bf8 {[%clk 0:01:06]} 18. Rhe1 {[%clk 0:02:30]}  a5 {[%clk 0:00:59]} 19. Bf3 {[%clk 0:02:17]}  b4 {[%clk 0:00:58]} 20. Qd4 {[%clk 0:02:06]}  Qb7 {[%clk 0:00:58]} 21. Rg1 {[%clk 0:02:01]}  Kh8 {[%clk 0:00:57]} 22. Rd3 {[%clk 0:01:28]}  Qb5 {[%clk 0:00:56]} 23. Bxh5 {[%clk 0:01:24]}  Re4 {[%clk 0:00:56]} 24. Qf2 {[%clk 0:01:06]}  Nxh5 {[%clk 0:00:56]} 25. Rh3 {[%clk 0:01:06]}  g6 {[%clk 0:00:54]} 26. Rxh5+ {[%clk 0:01:06]}  gxh5 {[%clk 0:00:55]} 27. Qh4 {[%clk 0:01:07]}  Qe2 {[%clk 0:00:53]} 28. Bf6+ {[%clk 0:00:42]}  Kh7 {[%clk 0:00:53]} 29. Qg5 {[%clk 0:00:34]}  Qe3+ {[%clk 0:00:37]} 30. Kd1 {[%clk 0:00:35]}  Qf3+ {[%clk 0:00:35]} 0-1


[Site "https://www.chess.com"]

[Event "Titled Tuesday Blitz June 15 2021"]
[White "Vokhidov, Shamsiddin"]
[Black "Colas, Joshua"]
[WhiteFideId "14204223"]
[BlackFideId "2044447"]
[WhiteElo "2572"]
[BlackElo "2347"]
[Result "1-0"]
[Round "11"]
[TimeControl "180+1"]
[Date "2021.06.15"]
[WhiteClock "0:00:26"]
[BlackClock "0:00:15"]

1. e4 {[%clk 0:03:00]}  c6 {[%clk 0:02:47]} 2. d3 {[%clk 0:03:00]}  d5 {[%clk 0:02:47]} 3. Nd2 {[%clk 0:03:00]}  g6 {[%clk 0:02:47]} 4. Ngf3 {[%clk 0:02:59]}  Bg7 {[%clk 0:02:47]} 5. d4 {[%clk 0:03:00]}  e6 {[%clk 0:02:43]} 6. Bd3 {[%clk 0:02:54]}  Nf6 {[%clk 0:02:43]} 7. O-O {[%clk 0:02:52]}  O-O {[%clk 0:02:43]} 8. e5 {[%clk 0:02:50]}  Nfd7 {[%clk 0:02:43]} 9. c3 {[%clk 0:02:51]}  b6 {[%clk 0:02:43]} 10. Re1 {[%clk 0:02:51]}  Ba6 {[%clk 0:02:43]} 11. Bxa6 {[%clk 0:02:49]}  Nxa6 {[%clk 0:02:44]} 12. Nf1 {[%clk 0:02:48]}  c5 {[%clk 0:02:45]} 13. h4 {[%clk 0:02:48]}  Rc8 {[%clk 0:02:36]} 14. h5 {[%clk 0:02:47]}  cxd4 {[%clk 0:02:37]} 15. cxd4 {[%clk 0:02:46]}  Nb4 {[%clk 0:02:37]} 16. Re2 {[%clk 0:02:44]}  h6 {[%clk 0:02:22]} 17. a3 {[%clk 0:02:41]}  Nc6 {[%clk 0:02:22]} 18. Qd3 {[%clk 0:02:35]}  g5 {[%clk 0:02:18]} 19. N1h2 {[%clk 0:02:32]}  Na5 {[%clk 0:01:58]} 20. Ng4 {[%clk 0:02:30]}  Re8 {[%clk 0:01:55]} 21. Bd2 {[%clk 0:02:14]}  Nc4 {[%clk 0:01:49]} 22. Be1 {[%clk 0:02:14]}  b5 {[%clk 0:01:48]} 23. b3 {[%clk 0:02:13]}  Ncb6 {[%clk 0:01:43]} 24. Bb4 {[%clk 0:02:12]}  Nb8 {[%clk 0:01:41]} 25. Bd6 {[%clk 0:02:10]}  a6 {[%clk 0:01:39]} 26. a4 {[%clk 0:02:07]}  bxa4 {[%clk 0:01:38]} 27. bxa4 {[%clk 0:02:04]}  Nc4 {[%clk 0:01:39]} 28. Bc5 {[%clk 0:02:03]}  Nd7 {[%clk 0:01:33]} 29. Bb4 {[%clk 0:02:03]}  Rb8 {[%clk 0:01:29]} 30. Be1 {[%clk 0:02:02]}  Qb6 {[%clk 0:01:28]} 31. Rc1 {[%clk 0:02:00]}  Qb3 {[%clk 0:01:27]} 32. Bc3 {[%clk 0:01:56]}  Qxa4 {[%clk 0:01:27]} 33. Nxg5 {[%clk 0:01:55]}  hxg5 {[%clk 0:01:26]} 34. h6 {[%clk 0:01:56]}  Bf8 {[%clk 0:01:05]} 35. Qh3 {[%clk 0:01:54]}  Be7 {[%clk 0:00:55]} 36. Qh5 {[%clk 0:01:50]}  Nf8 {[%clk 0:00:51]} 37. h7+ {[%clk 0:01:39]}  Nxh7 {[%clk 0:00:43]} 38. Nh6+ {[%clk 0:01:39]}  Kg7 {[%clk 0:00:36]} 39. Nxf7 {[%clk 0:01:02]}  Qd7 {[%clk 0:00:28]} 40. Bd2 {[%clk 0:00:54]}  Nxd2 {[%clk 0:00:23]} 41. Rxd2 {[%clk 0:00:55]}  Bf8 {[%clk 0:00:20]} 42. Nxg5 {[%clk 0:00:52]}  Nxg5 {[%clk 0:00:19]} 43. Qxg5+ {[%clk 0:00:53]}  Kh8 {[%clk 0:00:20]} 44. Rd3 {[%clk 0:00:52]}  Bg7 {[%clk 0:00:20]} 45. Qg6 {[%clk 0:00:46]}  Kg8 {[%clk 0:00:19]} 46. Rh3 {[%clk 0:00:44]}  Re7 {[%clk 0:00:18]} 47. Rcc3 {[%clk 0:00:38]}  Rf7 {[%clk 0:00:17]} 48. Rcf3 {[%clk 0:00:25]}  Rb1+ {[%clk 0:00:17]} 49. Kh2 {[%clk 0:00:24]}  Rxf3 {[%clk 0:00:18]} 50. Qh7+ {[%clk 0:00:25]}  Kf8 {[%clk 0:00:15]} 51. Rxf3+ {[%clk 0:00:26]} 1-0


[Site "https://www.chess.com"]